bitfinex-derivatives/quotes_ETHF0:USTF0_20251031
["timestamp","ask_amount","ask_price","bid_price","bid_amount"]
[1761925441473,0.1304,3858.5,3858.4,9.15438265]
[1761925441774,0.3596,3858.5,3858.4,9.15438265]
[1761925442078,0.3596,3858.5,3858.4,0.00238265]
[1761925442573,3.5674,3858.5,3858.4,0.00238265]
[1761925443769,0.3596,3858.5,3858.4,0.00238265]
[1761925443968,3.5674,3858.5,3858.4,0.00238265]
[1761925445673,0.3596,3858.0,3857.9,9.152]
[1761925446079,0.1304,3858.0,3857.9,9.152]
[1761925446775,0.00289333,3858.0,3857.9,12.36169593]
[1761925447878,0.13329333,3858.0,3857.9,12.36169593]
[1761925449972,0.00289333,3858.0,3857.9,12.82850593]
[1761925450378,0.00289333,3858.0,3857.9,12.36169593]
[1761925451774,0.1304,3858.5,3857.9,12.36169593]
[1761925451975,0.1304,3858.5,3858.4,3.2078]
[1761925452473,0.3613,3858.5,3857.9,3.20969593]
[1761925452681,0.1341,3858.0,3857.9,3.20969593]
[1761925452866,0.13668244,3858.0,3857.9,12.36169593]
[1761925454278,0.13668244,3858.0,3857.9,12.82850593]
[1761925458182,0.13668244,3858.0,3857.9,12.36169593]
[1761925459181,0.13668244,3858.0,3857.9,12.36069593]
[1761925460084,0.13668244,3858.0,3857.9,9.15289593]
[1761925460581,0.13668244,3858.0,3857.9,12.36069593]
[1761925461375,0.00258244,3858.0,3857.9,12.82750593]
[1761925469289,0.00258244,3858.0,3857.9,12.36069593]
[1761925469594,0.37258244,3858.0,3857.9,9.14989593]
[1761925469885,0.2359,3857.2,3857.1,2.53722515]
[1761925470082,3.4437,3857.2,3857.1,9.35481356]
[1761925470689,0.1341,3856.5,3856.2,5.53821159]
[1761925470882,0.1341,3856.5,3856.3,9.148]
[1761925471087,0.2359,3856.4,3856.3,9.148]
[1761925473792,0.1341,3856.5,3856.3,9.148]
[1761925474092,0.1341,3857.5,3856.9,0.1055]
[1761925474283,2.2756858,3859.5,3856.3,9.148]
[1761925474284,1.38447421,3858.8,3858.7,0.103]
[1761925474485,0.1341,3859.0,3858.7,7.092]
[1761925474791,0.2359,3858.9,3858.8,9.148]
[1761925474996,3.4437,3858.9,3858.8,9.148]
[1761925475191,3.4437,3858.9,3858.0,3.2078]
[1761925475395,3.4437,3858.9,3857.2,3.19422796]
[1761925475396,0.00234429,3858.9,3858.4,3.2078]
[1761925475587,3.2078,3860.3,3859.4,0.103]
[1761925475789,0.2359,3859.5,3859.4,6.312]
[1761925476085,0.1341,3860.4,3859.4,6.312]
[1761925476282,0.1341,3860.4,3860.1,0.236]
[1761925476485,3.2078,3861.4,3861.3,0.236]
[1761925476690,3.2078,3861.4,3861.3,7.832]
[1761925476691,0.00289764,3861.4,3861.3,7.832]
[1761925476893,0.00289764,3861.4,3861.3,9.148]
[1761925477097,0.23879764,3861.4,3861.3,9.148]
[1761925477492,0.23879764,3861.4,3860.2,3.2078]
[1761925477702,0.1341,3860.5,3860.3,9.149]
[1761925477997,0.1341,3860.5,3860.4,9.161]
[1761925478198,3.2078,3860.6,3860.4,9.161]
[1761925478499,0.2359,3860.2,3860.1,0.00291255]
[1761925478699,0.1341,3860.5,3860.1,9.16391255]
[1761925478888,3.2078,3861.0,3860.1,12.37171255]
[1761925479089,0.1341,3861.2,3860.5,3.2078]
[1761925479299,0.00289764,3861.4,3860.9,3.2078]
[1761925479491,0.00289764,3861.4,3861.3,0.2222]
[1761925479798,3.2078,3861.9,3861.3,9.3902]
[1761925479999,0.1311,3864.0,3861.8,3.89632]
[1761925480000,3.2078,3863.8,3861.8,3.89632]
[1761925480189,0.1311,3864.0,3863.0,3.2078]
[1761925480499,0.1311,3864.0,3863.4,3.2078]
[1761925480696,0.1311,3864.0,3863.5,5.778]
[1761925481007,0.13388983,3864.0,3863.5,5.77996276]
[1761925481297,0.13388983,3864.0,3863.5,0.00196276]
[1761925481693,0.00278983,3864.0,3863.9,3.2078]
[1761925481891,0.00278983,3864.0,3863.9,12.66]
[1761925482291,0.025,3864.7,3864.6,0.2222]
[1761925482502,0.2529,3864.7,3864.6,3.2078]
[1761925482701,0.2279,3864.6,3864.5,9.233]
[1761925483201,0.1311,3864.0,3863.8,9.238]
[1761925484299,0.00293462,3864.6,3863.8,9.238]
[1761925484499,0.00293462,3864.6,3864.3,3.2078]
[1761925484799,0.00293462,3864.6,3864.4,9.239]
[1761925484999,0.2279,3864.5,3864.4,9.239]
[1761925485799,0.00293462,3864.6,3864.4,9.239]
[1761925486503,0.00293462,3864.6,3864.5,0.2222]
[1761925488508,0.00293462,3864.6,3864.4,9.239]
[1761925488509,0.1311,3864.0,3863.5,0.00196276]
[1761925488702,0.1311,3864.0,3863.6,9.23]
[1761925488998,0.00293462,3864.6,3863.7,3.2078]
[1761925489203,0.00293462,3864.6,3864.1,3.2078]
[1761925489497,0.025,3864.7,3864.6,0.0117]
[1761925489690,0.1311,3865.4,3864.6,0.0117]
[1761925489892,0.1311,3866.8,3864.2,9.248]
[1761925489893,3.2078,3866.7,3865.3,3.2195]
[1761925490101,3.2078,3866.7,3865.7,3.2078]
[1761925490399,0.1311,3866.8,3866.0,0.0117]
[1761925490597,0.00322799,3866.1,3866.0,3.2195]
[1761925490896,0.13432799,3866.1,3866.0,9.26]
[1761925491101,0.36222799,3866.1,3866.0,9.26]
[1761925491497,0.13432799,3866.1,3866.0,9.26]
[1761925491809,0.13432799,3866.1,3865.4,3.2078]
[1761925492005,0.1311,3865.4,3864.8,3.2078]
[1761925492300,0.1311,3865.4,3865.2,3.2078]
[1761925492500,0.13432799,3866.1,3865.2,3.2078]
[1761925492801,0.13432799,3866.1,3864.6,0.20995054]
[1761925492802,3.2078,3867.6,3865.6,3.2078]
[1761925492994,3.2078,3867.3,3866.2,3.2078]
[1761925493199,3.2078,3867.3,3866.6,3.2078]
[1761925493503,0.1311,3868.2,3867.0,3.2078]
[1761925493504,3.2078,3867.9,3867.0,3.2078]
[1761925493700,3.2078,3867.9,3867.1,9.312]
[1761925494005,0.00264461,3867.5,3867.4,3.2078]
[1761925494303,0.00264461,3867.5,3867.4,9.313]
[1761925495306,0.00264461,3867.5,3867.4,9.3214]
[1761925495498,0.1311,3868.8,3867.4,17.78706]
[1761925495693,0.1311,3868.8,3868.1,3.2078]
[1761925495894,0.1311,3868.8,3868.2,9.322]
[1761925496504,0.13355824,3868.8,3868.2,9.322]
[1761925497401,0.13355824,3868.8,3867.1,0.00198961]
[1761925497402,3.2078,3868.6,3867.7,3.2078]
[1761925497609,3.2078,3868.6,3867.8,9.327]
[1761925497804,0.13355824,3868.8,3867.8,9.327]
[1761925498407,0.13355824,3868.8,3868.5,3.2078]
[1761925498606,0.13355824,3868.8,3868.6,9.322]
[1761925499210,0.00245824,3868.8,3868.7,0.0058]
[1761925500206,0.00245824,3868.8,3868.7,9.3228]
[1761925500408,0.025,3869.7,3868.7,9.3228]
[1761925500600,0.025,3869.7,3869.2,3.2078]
[1761925500909,0.025,3869.7,3869.3,9.316]
[1761925500910,3.2328,3869.7,3869.3,9.316]
[1761925501111,0.359,3868.9,3868.4,3.2078]
[1761925501311,0.1311,3868.9,3868.5,9.315]
[1761925501512,0.13431236,3868.9,3868.5,9.315]
[1761925501706,0.2279,3867.4,3867.3,3.2078]
[1761925501905,0.359,3867.2,3867.1,0.00198961]
[1761925502203,3.2078,3867.9,3867.1,0.00198961]
[1761925502508,0.1311,3867.2,3867.1,0.00198961]
[1761925503009,0.1311,3867.2,3867.1,6.07798961]
[1761925503010,0.359,3867.2,3867.1,6.07798961]
[1761925503306,3.5668,3867.2,3866.5,9.328]
[1761925504408,3.5668,3867.2,3866.5,9.33109474]
[1761925504704,3.5668,3867.2,3866.5,0.00309474]
[1761925504705,0.2279,3866.6,3866.5,0.00309474]
[1761925504909,0.2279,3866.6,3865.6,3.2078]
[1761925505109,0.0907,3865.6,3863.5,0.46613]
[1761925505309,3.2078,3865.0,3864.1,3.2078]
[1761925505810,3.2078,3865.7,3864.8,0.1358]
[1761925506011,0.0018479,3865.0,3864.9,3.559]
[1761925506900,3.2096479,3865.0,3864.1,3.20972926]
[1761925507106,3.2096479,3865.0,3864.2,7.92]
[1761925507505,3.2096479,3865.0,3864.1,3.20972926]
[1761925507804,3.2078,3864.6,3864.2,9.356]
[1761925508005,3.2096479,3865.0,3864.9,0.2222]
[1761925508205,0.0018479,3865.0,3864.9,9.5812]
[1761925508607,3.2078,3865.9,3864.9,9.5812]
[1761925509510,3.2078,3865.5,3864.9,9.5812]
[1761925509809,3.2078,3865.5,3864.1,0.00192926]
[1761925509810,3.2078,3865.0,3864.7,9.359]
[1761925510012,3.2078,3865.0,3864.5,9.361]
[1761925511117,3.2078,3864.6,3864.5,9.361]
[1761925511612,3.2078,3865.0,3864.5,9.361]
[1761925511911,3.2078,3864.6,3864.5,9.361]
[1761925512116,3.2078,3865.0,3864.5,9.361]
[1761925512313,0.63795305,3864.9,3864.5,9.361]
[1761925512509,3.2078,3865.0,3864.5,9.361]
[1761925512709,3.2078,3864.6,3864.1,0.00192926]
[1761925512926,3.2078,3864.2,3864.1,3.42892926]
[1761925513218,3.2078,3864.6,3864.1,0.00192926]
[1761925513412,0.63808593,3864.5,3864.1,0.00192926]
[1761925513614,0.63803449,3864.4,3864.1,0.00192926]
[1761925513818,3.2078,3864.5,3864.1,0.00192926]
[1761925514215,0.63802346,3864.4,3864.1,0.00192926]
[1761925514415,0.2202,3864.2,3864.1,0.00192926]
[1761925514613,3.2078,3864.5,3864.1,0.00192926]
[1761925514810,0.63803351,3864.4,3864.1,0.00192926]
[1761925515009,3.2078,3864.5,3864.1,0.00192926]
[1761925515209,0.63806902,3864.4,3864.1,0.00192926]
[1761925515415,0.63806902,3864.3,3864.1,0.00192926]
[1761925515719,3.2078,3864.9,3864.1,0.00192926]
[1761925515919,0.63811465,3864.8,3864.1,0.00192926]
[1761925516126,3.2078,3864.3,3864.1,0.00192926]
[1761925516310,3.2078,3864.2,3864.1,0.00192926]
[1761925516816,0.1389,3864.7,3864.1,0.00192926]
[1761925516817,3.3467,3864.7,3864.1,0.00192926]
[1761925517018,0.63808063,3864.6,3864.1,0.00192926]
[1761925517321,3.2078,3864.7,3864.1,0.00192926]
[1761925517621,3.20975868,3865.5,3865.0,0.2256]
[1761925517815,3.20975868,3865.5,3865.1,9.357]
[1761925518212,0.00195868,3865.5,3865.1,9.357]
[1761925518629,3.2078,3865.4,3865.1,9.357]
[1761925518919,3.2078,3865.4,3865.2,9.356]
[1761925519120,3.2078,3865.4,3864.5,3.2078]
[1761925519323,3.2078,3865.4,3864.6,9.354]
[1761925519520,0.8278,3865.4,3864.6,9.354]
[1761925519719,1.35844591,3866.7,3866.6,0.2186]
[1761925520021,5.02782493,3868.6,3867.2,0.1365]
[1761925520218,4.64648638,3869.5,3868.0,0.1365]
[1761925520219,0.63231019,3868.5,3868.0,0.1365]
[1761925520424,1.82002493,3870.0,3868.4,3.2078]
[1761925520722,0.02742501,3869.7,3869.2,3.2078]
[1761925520917,2.501e-05,3869.7,3869.3,3.137]
[1761925521231,0.1421,3870.9,3869.6,3.2078]
[1761925521417,0.1421,3870.0,3869.3,3.137]
[1761925521725,1.82002493,3871.8,3870.4,0.46529]
[1761925521917,1.43720941,3872.4,3871.4,3.2078]
[1761925522119,0.01313479,3872.7,3872.3,3.2078]
[1761925522514,0.01313479,3872.7,3872.4,13.038]
[1761925522718,0.23075235,3875.5,3872.4,5.038]
[1761925522719,3.2078,3875.5,3872.4,5.038]
[1761925522923,3.2078,3874.3,3873.5,3.2078]
[1761925523116,0.14537641,3873.6,3873.5,0.00279757]
[1761925523723,0.14537641,3873.6,3872.6,3.2078]
[1761925523724,0.1421,3873.0,3872.6,3.2078]
[1761925524129,3.2078,3872.7,3871.8,3.2078]
[1761925524326,0.1421,3872.0,3871.4,3.2078]
[1761925524625,0.1421,3872.0,3871.4,3.21017745]
[1761925524821,3.2078,3871.8,3871.4,0.00237745]
[1761925525221,0.1421,3872.0,3871.4,0.00237745]
[1761925525421,0.1421,3872.0,3871.4,3.21017745]
[1761925525620,3.2078,3871.9,3871.4,3.21017745]
[1761925525834,3.2078,3871.9,3871.4,0.00237745]
[1761925526035,3.2078,3871.8,3871.4,0.00237745]
[1761925526238,3.3499,3872.0,3871.4,0.00237745]
[1761925526633,0.1421,3870.9,3870.5,3.2078]
[1761925527534,0.1421,3870.9,3870.5,3.21055864]
[1761925527729,3.2078,3870.7,3870.5,0.00275864]
[1761925527931,0.00323555,3870.7,3870.5,0.00275864]
[1761925528432,0.00323555,3870.7,3870.5,3.21055864]
[1761925528934,0.00323555,3870.7,3870.5,0.00275864]
[1761925529538,0.1421,3869.8,3869.4,3.2078]
[1761925530031,0.1421,3869.8,3869.0,3.2078]
[1761925530228,0.1421,3868.7,3868.6,3.2078]
[1761925530640,0.1421,3868.7,3868.6,3.21008742]
[1761925531934,0.13696391,3868.7,3868.6,3.21008742]
[1761925532829,0.13696391,3868.7,3868.6,11.21008742]
[1761925533541,0.1421,3869.8,3868.6,44.08768742]
[1761925533749,0.1421,3869.8,3869.7,3.2078]
[1761925534134,0.1421,3869.8,3869.7,11.2078]
[1761925534734,0.00323555,3870.7,3869.7,3.2078]
[1761925534942,0.1421,3870.9,3870.6,3.2078]
[1761925535736,0.1421,3870.9,3870.1,3.2078]
[1761925535930,0.1421,3873.0,3870.4,3.2078]
[1761925535931,3.2078,3872.9,3870.4,3.2078]
[1761925536141,0.1421,3873.0,3871.3,3.2078]
[1761925536347,0.1421,3871.0,3870.8,3.2078]
[1761925536645,0.1421,3871.0,3870.4,3.2078]
[1761925537043,0.14425773,3871.0,3870.9,3.2078]
[1761925538543,0.14425773,3871.0,3870.5,3.2078]
[1761925538843,0.14425773,3871.0,3870.1,3.2078]
[1761925539349,0.14425773,3871.0,3870.5,3.2078]
[1761925540537,0.14425773,3871.0,3870.9,3.2078]
[1761925543841,0.1421,3873.0,3870.9,3.2078]
[1761925544036,0.1421,3873.0,3871.9,3.2078]
[1761925544248,0.1421,3873.0,3871.9,12.8708]
[1761925544847,0.14513078,3872.0,3871.9,12.87264163]
[1761925546247,0.14513078,3872.0,3871.9,12.87364163]
[1761925548247,0.14513078,3872.0,3871.9,0.00184163]
[1761925548450,0.14513078,3872.0,3871.6,3.049]
[1761925549053,0.14513078,3872.0,3871.8,3.2078]
[1761925549445,0.14513078,3872.0,3871.8,3.21075345]
[1761925550741,0.1421,3873.0,3872.4,0.46505]
[1761925550938,0.1421,3873.0,3872.9,3.2078]
[1761925552248,0.14426638,3873.0,3872.9,3.2078]
[1761925553347,0.00216638,3873.0,3872.9,11.2078]
[1761925553543,0.2074,3874.0,3872.9,11.2078]
[1761925553544,0.2074,3874.0,3872.9,3.2078]
[1761925553750,0.2074,3874.0,3873.9,3.2078]
[1761925553952,0.2074,3874.0,3873.9,12.8778]
[1761925554152,0.2074,3874.5,3873.9,12.8778]
[1761925554451,0.20941492,3874.5,3874.4,3.2078]
[1761925554645,3.2078,3875.9,3874.8,0.46477]
[1761925554844,3.2078,3875.9,3875.2,3.2078]
[1761925555155,3.2078,3875.9,3875.3,9.68]
[1761925555352,3.2078,3875.9,3875.3,9.678]
[1761925555651,3.2078,3875.9,3875.3,12.88780718]
[1761925556249,3.4152,3876.3,3875.3,9.68000718]
[1761925556443,3.2078,3875.9,3875.3,9.68000718]
[1761925557349,3.2078,3876.2,3875.3,9.68000718]
[1761925557540,3.2078,3875.7,3875.3,9.68000718]
[1761925558153,3.2078,3875.6,3875.3,9.68000718]
[1761925558352,0.2074,3876.3,3875.3,12.88780718]
[1761925559057,0.2074,3876.3,3875.3,3.20980718]
[1761925559351,0.2074,3876.3,3875.3,12.88780718]
[1761925561456,0.2074,3876.3,3875.4,1.16178]
[1761925561657,0.2074,3876.3,3876.2,3.2078]
[1761925561858,0.2074,3876.3,3876.2,12.8938]
[1761925562159,0.2074,3876.3,3876.2,9.686]
[1761925562659,0.2074,3876.3,3876.2,12.8938]
[1761925565553,0.2074,3876.3,3876.2,9.686]
[1761925565959,0.2074,3876.3,3876.2,12.8938]
[1761925567453,0.2074,3876.3,3876.2,12.8918]
[1761925567656,0.2074,3876.3,3875.3,0.00200718]
[1761925567857,0.2074,3876.3,3875.8,3.2078]
[1761925568059,0.2074,3876.3,3875.9,3.169]
[1761925568564,3.2078,3876.1,3875.5,9.682]
[1761925568759,3.2078,3875.7,3875.5,9.682]
[1761925568957,3.2078,3875.9,3875.5,9.682]
[1761925569461,0.2074,3876.3,3875.5,9.682]
[1761925569762,3.2078,3875.7,3875.5,9.682]
[1761925569959,3.2078,3875.6,3875.3,0.00200718]
[1761925570255,0.1772,3874.4,3874.2,3.2078]
[1761925570454,0.1772,3874.4,3874.3,3.049]
[1761925571060,0.17957011,3874.4,3874.3,0.00225126]
[1761925571260,0.17957011,3874.4,3874.3,9.69325126]
[1761925571476,0.17957011,3874.4,3872.5,9.702]
[1761925571477,0.1772,3872.7,3872.5,9.702]
[1761925571754,0.1772,3872.7,3871.2,2.33041159]
[1761925571755,0.1772,3871.8,3871.0,1.36786938]
[1761925571956,0.1772,3871.8,3871.2,3.2078]
[1761925572355,0.1772,3871.8,3871.3,9.725]
[1761925572660,0.1772,3871.8,3871.3,12.9328]
[1761925572963,0.1772,3871.8,3871.3,9.725]
[1761925573264,0.1772,3871.8,3871.3,12.9328]
[1761925574149,0.1772,3871.8,3871.7,3.2078]
[1761925574963,0.07525068,3871.8,3871.7,3.2078]
[1761925577170,0.07525068,3871.8,3871.7,3.67295]
[1761925577456,0.07525068,3871.8,3871.7,15.6028]
[1761925577660,0.07525068,3871.8,3871.7,25.3508]
[1761925578550,0.07525068,3871.8,3871.7,66.1508]
[1761925579057,3.2078,3873.4,3871.7,66.1508]
[1761925579058,3.2078,3873.8,3871.7,66.61594]
[1761925579260,3.2078,3872.3,3871.6,3.2078]
[1761925579453,3.2078,3872.2,3871.4,12.396]
[1761925579656,3.2078,3872.5,3871.7,9.749]
[1761925579852,3.2078,3872.1,3871.2,3.21108209]
[1761925580060,3.2078,3871.9,3871.3,3.205]
[1761925580259,3.2078,3871.8,3871.3,3.205]
[1761925580658,3.2078,3872.3,3871.3,3.205]
[1761925581157,3.2078,3872.3,3871.4,6.447]
[1761925581456,4.40605994,3874.2,3871.4,6.447]
[1761925581457,3.2078,3871.8,3871.4,6.447]
[1761925581858,3.2078,3872.2,3871.4,6.447]
[1761925582163,3.2078,3871.8,3871.4,6.447]
[1761925582357,3.2078,3871.8,3871.5,9.74]
[1761925583260,3.2078,3871.8,3871.2,0.00328209]
[1761925583452,3.2078,3871.3,3870.4,3.2078]
[1761925583655,3.2078,3871.3,3870.5,1.336]
[1761925583856,3.2078,3871.8,3870.5,1.336]
[1761925584067,3.2078,3871.8,3870.6,0.46528]
[1761925584260,3.2078,3871.8,3870.8,3.2078]
[1761925584562,3.21038369,3871.8,3870.8,3.21102659]
[1761925584857,0.00258369,3871.8,3871.3,0.4652]
[1761925585065,0.00258369,3871.8,3871.5,0.46517]
[1761925585260,0.00258369,3871.8,3871.6,3.2078]
[1761925586253,3.21038369,3871.8,3870.9,3.2078]
[1761925586460,0.00258369,3871.8,3871.0,9.718]
[1761925586661,0.00258369,3871.8,3870.9,3.2078]
[1761925586866,0.00258369,3871.8,3871.2,0.46521]
[1761925587068,0.00258369,3871.8,3871.0,5.41123]
[1761925587260,0.00258369,3871.8,3871.0,4.946]
[1761925587464,0.00258369,3871.8,3871.3,3.2078]
[1761925588158,0.00258369,3871.8,3870.9,3.2078]
[1761925588571,0.00258369,3871.8,3871.0,9.701]
[1761925589066,0.00258369,3871.8,3871.4,3.2078]
[1761925589465,0.00258369,3871.8,3871.6,0.46516]
[1761925589669,0.00258369,3871.8,3871.7,9.712]
[1761925590564,0.00258369,3871.8,3871.4,3.2078]
[1761925590756,0.00258369,3871.8,3871.6,0.46516]
[1761925591871,0.00258369,3871.8,3871.5,9.711]
[1761925592070,0.00258369,3871.8,3871.4,3.2078]
[1761925592365,0.00258369,3871.8,3871.5,9.708]
[1761925593455,0.00258369,3871.8,3871.6,3.2078]
[1761925595067,0.00258369,3871.8,3871.6,3.67296]
[1761925595567,0.00258369,3871.8,3871.5,9.708]
[1761925595762,0.00258369,3871.8,3871.2,3.2078]
[1761925595970,0.00258369,3871.8,3871.7,3.2078]
[1761925596160,0.00258369,3871.8,3871.7,9.693]
[1761925598674,0.00258369,3871.8,3871.7,8.67515631]
[1761925599176,0.00258369,3871.8,3870.8,0.00322659]
[1761925599476,3.2078,3871.2,3870.8,0.00322659]
[1761925599674,3.2078,3871.6,3870.8,0.00322659]
[1761925599972,3.2078,3871.1,3870.8,0.00322659]
[1761925600772,3.2078,3871.5,3870.8,0.00322659]
[1761925602068,3.2078,3871.0,3870.8,0.00322659]
[1761925602379,3.2078,3870.9,3870.8,0.00322659]
[1761925602568,3.2078,3871.3,3870.8,0.00322659]
[1761925603171,3.2078,3870.9,3870.8,0.00322659]
[1761925603472,3.2078,3871.3,3870.8,0.00322659]
[1761925604673,3.2078,3871.7,3870.8,0.00322659]
[1761925604967,3.2078,3871.2,3870.8,0.00322659]
[1761925605167,3.2078,3871.0,3870.8,0.00322659]
[1761925605564,3.2078,3871.7,3870.8,0.00322659]
[1761925606364,0.00258369,3871.8,3870.8,0.00322659]
[1761925606365,3.2078,3871.2,3870.8,0.00322659]
[1761925606572,3.2078,3871.2,3869.7,0.02584213]
[1761925606869,3.2078,3870.9,3870.0,3.2078]
[1761925607170,3.2078,3870.9,3869.8,9.672]
[1761925607374,3.2078,3870.1,3869.7,0.02584213]
[1761925607566,3.2078,3870.1,3869.7,0.00285463]
[1761925607864,3.2078,3870.1,3868.8,5.89]
[1761925607865,3.2078,3870.1,3869.0,0.46547]
[1761925608065,3.2078,3869.1,3868.7,0.44657043]
[1761925608265,3.2078,3869.6,3868.7,0.44657043]
[1761925608770,3.2078,3869.6,3868.7,3.65697825]
[1761925608971,3.2078,3869.6,3868.9,0.46548]
[1761925609273,3.2078,3869.6,3869.1,0.46546]
[1761925609477,3.2078,3869.6,3868.7,0.91468825]
[1761925609666,3.2078,3869.6,3868.7,0.44917825]
[1761925609872,3.2078,3869.6,3868.7,0.91468825]
[1761925610581,3.2078,3869.2,3868.7,0.44917825]
[1761925611480,3.2078,3869.3,3868.7,0.44917825]
[1761925612078,3.2078,3869.8,3869.2,0.46545]
[1761925612472,3.2078,3869.8,3868.9,3.2078]
[1761925612780,3.2078,3869.8,3869.5,0.46541]
[1761925612979,3.2078,3870.3,3869.5,0.46541]
[1761925613175,3.2078,3870.3,3870.0,0.46535]
[1761925613479,3.2078,3870.3,3870.1,0.46534]
[1761925613974,3.2078,3871.1,3870.2,3.2078]
[1761925614379,3.2078,3871.1,3870.8,0.46526]
[1761925614583,3.2078,3871.1,3870.8,0.46525]
[1761925614776,3.2078,3871.5,3870.2,4.37111]
[1761925615082,3.2078,3871.5,3870.7,0.46527]
[1761925615374,3.2078,3871.5,3870.8,0.46526]
[1761925615573,3.2078,3871.5,3870.9,0.46525]
[1761925615770,3.2078,3871.5,3870.7,1.16319]
[1761925615975,3.2078,3871.5,3871.0,0.46523]
[1761925616182,3.2078,3871.5,3870.6,3.2078]
[1761925616379,3.2078,3871.5,3871.2,0.46521]
[1761925616879,3.2078,3871.5,3871.0,0.46523]
[1761925617487,3.2078,3871.5,3870.6,3.2078]
[1761925617674,3.2078,3871.5,3871.1,0.46522]
[1761925617873,3.2078,3871.5,3870.6,3.2078]
[1761925618178,3.2078,3871.5,3870.6,4.371]
[1761925618984,3.2078,3871.5,3870.6,3.2078]
[1761925619583,3.2078,3871.1,3870.6,3.2078]
[1761925619885,0.00258369,3871.8,3868.7,3.65697825]
[1761925619886,3.2078,3870.7,3868.7,3.65697825]
[1761925620186,3.2078,3869.4,3868.7,0.44917825]
[1761925621087,3.2078,3869.8,3869.1,3.2078]
[1761925621583,3.2078,3869.8,3869.4,0.46542]
[1761925621771,3.2078,3870.2,3869.6,0.4654]
[1761925621971,3.2078,3870.2,3869.5,3.2078]
[1761925622274,3.2078,3870.6,3869.9,0.46537]
[1761925622470,3.2078,3870.6,3869.3,1.16358]
[1761925622471,3.2078,3870.0,3869.0,6.325]
[1761925622674,3.2078,3869.2,3868.6,3.2078]
[1761925622879,3.2078,3869.6,3869.0,3.2078]
[1761925623086,3.2078,3870.0,3869.0,3.2078]
[1761925623285,3.2078,3870.4,3869.5,3.2078]
[1761925623475,3.2078,3870.8,3869.9,3.2078]
[1761925623676,3.2078,3870.4,3869.2,7.50786938]
[1761925623879,3.2078,3870.1,3869.2,6.14]
[1761925624579,3.2078,3870.8,3869.5,3.2078]
[1761925624785,3.2078,3870.8,3870.1,0.46534]
[1761925625083,3.2078,3870.8,3869.5,4.57566938]
[1761925625284,3.2078,3870.8,3869.9,3.2078]
[1761925625486,3.2078,3870.8,3870.2,0.46533]
[1761925625878,3.2078,3870.8,3870.3,3.2078]
[1761925626086,3.2078,3871.3,3870.6,0.46528]
[1761925626282,3.2078,3871.3,3870.3,3.2078]
[1761925626481,3.2078,3871.3,3870.7,3.67307]
[1761925626671,0.00258369,3871.8,3870.7,3.67307]
[1761925626672,3.2078,3871.7,3870.8,0.46526]
[1761925626875,3.2078,3871.7,3870.7,3.67307]
[1761925627075,3.2078,3871.7,3870.7,3.2078]
[1761925627290,3.2078,3871.7,3870.5,1.36786938]
[1761925627291,3.2078,3871.7,3871.2,3.2078]
[1761925627483,3.2078,3871.7,3870.6,1.36786938]
[1761925627684,0.00258369,3871.8,3871.0,0.46523]
[1761925627873,0.00258369,3871.8,3870.8,4.57566938]
[1761925628074,3.2078,3871.6,3870.9,3.2078]
[1761925628485,3.2078,3871.0,3870.4,1.36786938]
[1761925628678,0.135,3871.2,3869.6,1.36786938]
[1761925628679,0.135,3870.4,3869.6,1.36786938]
[1761925628983,0.135,3869.6,3869.3,0.46544]
[1761925629296,0.135,3869.6,3869.3,1.36786938]
[1761925629497,3.2078,3869.4,3869.1,1.36786938]
[1761925629676,0.135,3869.6,3868.7,5.02484763]
[1761925629987,0.135,3869.6,3869.2,1.36786938]
[1761925630187,0.135,3869.6,3869.3,1.36786938]
[1761925630374,0.135,3869.6,3869.2,1.36786938]
[1761925630687,0.135,3869.6,3869.5,3.2078]
[1761925631482,0.135,3869.6,3869.3,1.36786938]
[1761925631679,0.135,3869.6,3869.1,1.36786938]
[1761925632078,0.135,3869.6,3868.9,4.57566938]
[1761925632291,0.135,3869.6,3869.0,1.36786938]
[1761925632484,0.135,3869.6,3869.3,3.67324]
[1761925632684,0.135,3869.6,3869.3,3.2078]
[1761925633880,0.135,3869.6,3869.4,0.46542]
[1761925634083,0.135,3869.6,3869.3,3.2078]
[1761925635084,0.135,3869.6,3869.3,3.67324]
[1761925635383,0.135,3869.6,3869.3,4.57566938]
[1761925635587,0.135,3869.6,3869.1,1.36786938]
[1761925636282,0.135,3869.6,3868.9,3.2078]
[1761925636283,0.135,3869.6,3869.4,3.67322]
[1761925636478,0.135,3869.6,3869.5,1.36786938]
[1761925636886,0.135,3869.6,3869.4,4.57566938]
[1761925637098,0.135,3869.6,3869.3,1.36786938]
[1761925637289,0.135,3869.6,3869.3,1.83330938]
[1761925637489,0.135,3869.6,3869.3,1.36786938]
[1761925638791,0.135,3869.6,3869.4,1.36786938]
[1761925638992,0.135,3869.6,3869.5,3.2078]
[1761925640391,0.135,3869.6,3869.5,4.58991912]
[1761925640796,0.135,3869.6,3869.5,1.38211912]
[1761925641004,0.135,3869.6,3869.2,1.38211912]
[1761925641486,3.3428,3869.6,3869.1,1.38211912]
[1761925641692,0.135,3869.6,3869.2,3.2078]
[1761925641889,0.135,3869.6,3869.3,3.2078]
[1761925642092,0.135,3869.6,3869.4,1.38211912]
[1761925642598,0.135,3869.6,3869.3,3.67323]
[1761925642803,0.135,3869.6,3869.5,0.46542]
[1761925643601,0.135,3870.4,3869.5,3.49395159]
[1761925643787,0.135,3870.4,3870.3,3.2078]
[1761925644898,0.135,3870.4,3870.3,5.05046278]
[1761925645290,0.135,3871.2,3870.3,12.8138]
[1761925645598,0.135,3871.2,3871.1,1.38157519]